bitfinex/quotes_SOLUSD_20250908
["timestamp","ask_amount","ask_price","bid_price","bid_amount"]
[1757315136103,1e-08,207.42,207.41,117.6649343]
[1757315147616,1e-08,207.42,207.41,118.3749343]
[1757315147790,0.06,207.45,207.44,58.743566]
[1757315147995,0.06,207.45,207.44,95.663566]
[1757315148621,0.06,207.45,207.44,96.373566]
[1757315148802,0.06,207.52,207.49,54.97]
[1757315149114,0.06,207.52,207.5,20.0]
[1757315149322,0.06,207.52,207.5,56.11512385]
[1757315149739,0.06,207.52,207.51,48.96416871]
[1757315149898,0.06,207.52,207.51,78.64416871]
[1757315150208,1e-08,207.52,207.51,71.49904486]
[1757315150410,1e-08,207.52,207.51,73.90732732]
[1757315151550,1e-08,207.54,207.53,26.0]
[1757315151697,1e-08,207.54,207.53,65.40828246]
[1757315152215,1e-08,207.54,207.53,68.77299213]
[1757315152602,13.59559401,207.62,207.57,2.40828246]
[1757315152802,16.00387647,207.62,207.58,26.0]
[1757315153220,0.68,207.61,207.58,26.0]
[1757315153529,0.68,207.6,207.58,26.0]
[1757315153703,16.00387647,207.62,207.59,4.81718772]
[1757315154322,0.68,207.61,207.59,4.81718772]
[1757315154623,0.68,207.6,207.59,4.81718772]
[1757315155797,0.68,207.6,207.59,84.91718772]
[1757315157515,3.08828246,207.6,207.57,26.0]
[1757315157718,3.08828246,207.59,207.57,26.0]
[1757315157930,0.68,207.58,207.57,26.0]
[1757315158227,0.68,207.58,207.52,4.81881264]
[1757315158228,3.08828246,207.58,207.52,4.81881264]
[1757315158429,2.40828246,207.55,207.53,3.35727222]
[1757315158612,0.68,207.54,207.53,29.35727222]
[1757315160642,0.68,207.54,207.53,34.17585266]
[1757315161726,0.68,207.54,207.53,34.17814497]
[1757315165229,2.40828246,207.56,207.53,34.17814497]
[1757315165230,0.68,207.56,207.53,34.17814497]
[1757315165429,0.7,207.55,207.54,3.35956453]
[1757315165937,0.7,207.55,207.54,8.1779128]
[1757315170149,0.76,207.55,207.54,8.1779128]
[1757315170753,16.76387647,207.55,207.54,3.35956453]
[1757315171253,14.35559401,207.55,207.54,3.35956453]
[1757315171630,13.65559401,207.55,207.54,8.1779128]
[1757315171848,0.06,207.55,207.54,11.29619526]
[1757315174078,0.06,207.55,207.54,10.58619526]
[1757315176038,0.06,207.55,207.54,11.29619526]
[1757315179657,0.06,207.55,207.54,10.58619526]
[1757315180456,0.76,207.55,207.54,10.58619526]
[1757315180865,0.06,207.55,207.54,10.58619526]
[1757315181156,0.76,207.55,207.54,10.58619526]
[1757315183959,0.06,207.55,207.54,10.58619526]
[1757315188065,0.06,207.55,207.54,39.55619526]
[1757315188363,0.06,207.55,207.54,10.58619526]
[1757315188664,0.06,207.55,207.54,90.71619526]
[1757315193573,0.76,207.55,207.54,88.3079128]
[1757315194370,0.76,207.55,207.54,8.2079128]
[1757315194680,0.76,207.55,207.54,4.84834827]
[1757315195558,14.35559401,207.55,207.54,0.03]
[1757315200580,0.06,207.55,207.54,0.03]
[1757315200883,0.06,207.55,207.54,2.43828246]
[1757315202976,0.06,207.55,207.54,33.25663073]
[1757315205159,0.06,207.55,207.54,33.93663073]
[1757315205561,1e-08,207.55,207.54,33.93663073]
[1757315205876,1e-08,207.55,207.54,143.00663073]
[1757315207581,0.06,207.58,207.54,158.33847552]
[1757315207767,0.06,207.58,207.57,28.40828246]
[1757315207961,0.06,207.58,207.57,68.61425658]
[1757315208176,0.06,207.58,207.57,98.26425658]
[1757315209085,0.06,207.58,207.57,103.08190845]
[1757315210378,0.06,207.58,207.57,104.4346613]
[1757315212280,0.06,207.58,207.57,184.5346613]
[1757315212585,0.78,207.58,207.57,183.8546613]
[1757315212789,0.06,207.58,207.57,146.9346613]
[1757315216590,0.78,207.58,207.57,146.9346613]
[1757315216792,0.06,207.58,207.57,146.9346613]
[1757315217290,0.06,207.58,207.57,143.17362599]
[1757315217492,0.06,207.58,207.57,146.9346613]
[1757315220687,0.06,207.58,207.57,147.6146613]
[1757315220998,0.06,207.58,207.57,146.9346613]
[1757315221295,0.06,207.58,207.57,66.8346613]
[1757315221495,0.1,207.63,207.62,54.97]
[1757315221802,1e-08,207.63,207.62,98.95700943]
[1757315221980,1e-08,207.63,207.62,99.63700943]
[1757315222496,1e-08,207.63,207.62,66.58426418]
[1757315222803,1e-08,207.63,207.62,103.53152395]
[1757315223301,1e-08,207.63,207.62,108.34801561]
[1757315224077,1e-08,207.63,207.62,104.5869803]
[1757315224276,1e-08,207.63,207.62,108.34801561]
[1757315224682,1e-08,207.63,207.62,63.05972555]
[1757315224906,1e-08,207.63,207.62,103.76076086]
[1757315225099,1e-08,207.63,207.62,66.82076086]
[1757315225277,1e-08,207.63,207.62,103.78076086]
[1757315226082,0.68000001,207.63,207.62,100.01972555]
[1757315226400,0.68000001,207.63,207.62,66.82076086]
[1757315227085,0.68000001,207.63,207.62,146.92076086]
[1757315227290,1e-08,207.63,207.62,146.92076086]
[1757315227678,0.68000001,207.63,207.62,146.92076086]
[1757315228590,1e-08,207.63,207.62,146.92076086]
[1757315234304,0.68000001,207.63,207.62,146.92076086]
[1757315237308,0.68000001,207.63,207.62,143.64752697]
[1757315237512,0.68000001,207.63,207.62,146.90383779]
[1757315238619,0.68000001,207.63,207.62,88.17280248]
[1757315238806,0.68000001,207.63,207.62,91.93383779]
[1757315240111,1e-08,207.63,207.62,91.93383779]
[1757315242203,0.68000001,207.63,207.62,91.93383779]
[1757315244121,1e-08,207.63,207.62,91.96383779]
[1757315244501,0.68000001,207.63,207.62,91.96383779]
[1757315245514,1e-08,207.63,207.62,91.96383779]
[1757315245813,0.68000001,207.63,207.62,91.96383779]
[1757315246117,1e-08,207.63,207.62,91.96383779]
[1757315246809,1e-08,207.63,207.62,120.90383779]
[1757315246988,1e-08,207.63,207.62,121.55383779]
[1757315247414,1e-08,207.63,207.62,158.47383779]
[1757315248616,1e-08,207.63,207.62,155.21752697]
[1757315250817,1e-08,207.63,207.62,154.56752697]
[1757315251052,1e-08,207.63,207.62,155.21752697]
[1757315253510,1e-08,207.63,207.62,154.56752697]
[1757315255121,0.68000001,207.63,207.62,117.64752697]
[1757315255324,1e-08,207.63,207.62,154.54752697]
[1757315256610,1e-08,207.63,207.62,157.81147555]
[1757315256806,1e-08,207.63,207.62,158.48147555]
[1757315260110,1e-08,207.66,207.65,54.94]
[1757315260307,1e-08,207.66,207.65,98.86498389]
[1757315260523,1e-08,207.66,207.65,99.53498389]
[1757315261524,1e-08,207.66,207.65,104.3507797]
[1757315264150,1e-08,207.66,207.65,103.6807797]
[1757315265214,1e-08,207.66,207.65,184.4507797]
[1757315265430,1e-08,207.66,207.65,183.7807797]
[1757315265628,1e-08,207.66,207.65,180.01974439]
[1757315265834,1e-08,207.66,207.65,183.7807797]
[1757315266327,0.69000001,207.66,207.65,183.7807797]
[1757315266721,1e-08,207.66,207.65,183.7807797]
[1757315267119,0.69000001,207.66,207.65,183.7807797]
[1757315268138,0.69000001,207.66,207.65,183.8007797]
[1757315268319,0.69000001,207.66,207.65,143.11974439]
[1757315268523,0.69000001,207.66,207.65,183.8007797]
[1757315268830,0.69000001,207.66,207.65,146.8807797]
[1757315269036,0.69000001,207.66,207.65,120.8807797]
[1757315269214,0.69000001,207.66,207.65,11.8407797]
[1757315269743,0.69000001,207.66,207.65,34.07974439]
[1757315272707,0.69000001,207.66,207.65,36.48605762]
[1757315275411,1e-08,207.66,207.65,36.48605762]
[1757315276820,1e-08,207.66,207.65,76.99605762]
[1757315278938,1e-08,207.66,207.65,76.32605762]
[1757315279942,1e-08,207.66,207.65,76.35605762]
[1757315280239,1e-08,207.66,207.65,77.02605762]
[1757315280429,1e-08,207.66,207.65,157.12605762]
[1757315280620,1e-08,207.66,207.65,156.45605762]
[1757315280824,1e-08,207.66,207.65,156.45755399]
[1757315281330,1e-08,207.66,207.65,117.15124076]
[1757315281534,1e-08,207.66,207.65,156.47755399]
[1757315282023,0.69000001,207.66,207.65,156.47755399]
[1757315282214,0.69000001,207.66,207.65,119.55755399]
[1757315285764,0.69000001,207.66,207.65,117.15124076]
[1757315285955,14.28559402,207.66,207.65,83.39544495]
[1757315286160,16.69190725,207.66,207.65,83.39544495]
[1757315286338,16.69190725,207.66,207.65,3.26544495]
[1757315286538,13.59559401,207.65,207.62,0.03]
[1757315286736,16.00190724,207.63,207.62,0.03]
[1757315287239,16.60190724,207.63,207.62,0.03]
[1757315289564,21.41816693,207.63,207.62,0.03]
[1757315290260,18.53124524,207.63,207.62,0.03]
[1757315292841,55.47124524,207.63,207.62,0.03]
[1757315293047,18.53124524,207.63,207.62,0.03]
[1757315293466,53.54190724,207.63,207.62,0.03]
[1757315293760,55.47115218,207.63,207.62,0.03]
[1757315296365,57.88109864,207.63,207.62,0.03]
[1757315296664,60.28741187,207.63,207.62,0.03]
[1757315297968,69.91266479,207.63,207.62,0.03]
[1757315299749,13.59559401,207.57,207.55,0.03]
[1757315299942,39.59559401,207.56,207.55,0.03]
[1757315300149,42.60190724,207.56,207.55,0.03]
[1757315300365,79.56190724,207.56,207.55,0.03]
[1757315300573,81.49198999,207.56,207.55,0.03]
[1757315301375,60.30987397,207.56,207.55,0.03]
[1757315304971,86.30987397,207.56,207.55,0.03]
[1757315305267,81.49198999,207.56,207.55,0.03]
[1757315305448,18.53198999,207.56,207.55,0.03]
[1757315305653,54.89198999,207.56,207.55,0.03]
[1757315306360,17.93198999,207.56,207.55,0.03]
[1757315306662,54.89198999,207.56,207.55,0.03]
[1757315307055,55.49198999,207.56,207.55,0.03]
[1757315307357,15.52567676,207.56,207.55,0.71]
[1757315307566,52.96190724,207.56,207.55,0.71]
[1757315309969,52.96190724,207.56,207.55,0.03]
[1757315316670,58.37979122,207.56,207.55,0.03]
[1757315318274,57.77979122,207.56,207.55,0.03]
[1757315320279,16.00190724,207.56,207.55,0.03]
[1757315320581,16.00190724,207.56,207.55,0.74]
[1757315320777,50.55559401,207.56,207.55,0.74]
[1757315320955,52.96190724,207.56,207.55,0.74]
[1757315321756,16.00190724,207.56,207.55,0.74]
[1757315321960,52.96190724,207.56,207.55,0.74]
[1757315324485,13.59559401,207.56,207.55,0.74]
[1757315324676,50.53559401,207.56,207.55,0.74]
[1757315332791,50.53559401,207.56,207.55,0.03]
[1757315333084,52.94190724,207.56,207.55,0.74]
[1757315334496,54.30024826,207.56,207.55,0.74]
[1757315334988,54.30024826,207.56,207.55,0.03]
[1757315336084,54.30024826,207.56,207.55,0.74]
[1757315336283,54.30024826,207.56,207.55,0.03]
[1757315336685,54.30024826,207.56,207.55,0.74]
[1757315338508,54.30024826,207.56,207.55,0.03]
[1757315344702,54.90024826,207.56,207.55,0.03]
[1757315344903,59.71813224,207.56,207.55,0.03]
[1757315345601,61.64830813,207.56,207.55,0.03]
[1757315347006,61.62830813,207.56,207.55,0.03]
[1757315348217,61.62830813,207.56,207.52,0.03]
[1757315348218,39.59559401,207.53,207.52,0.03]
[1757315348391,13.59559401,207.52,207.51,0.03]
[1757315348585,21.72490251,207.52,207.51,0.03]
[1757315348813,28.47435684,207.52,207.51,0.03]
[1757315354231,28.47435684,207.52,207.44,0.72]
[1757315354417,39.59559401,207.5,207.44,0.03]
[1757315354722,54.30024826,207.49,207.44,0.72]
[1757315355018,56.83116955,207.49,207.44,0.72]
[1757315355717,61.65067892,207.49,207.44,0.72]
[1757315358103,24.11067892,207.49,207.44,0.03]
[1757315358301,61.05067892,207.49,207.46,0.69]
[1757315360901,61.05067892,207.49,207.45,0.69]
[1757315361826,61.65067892,207.49,207.44,0.03]
[1757315362018,61.65067892,207.49,207.44,0.72]
[1757315362412,61.05067892,207.49,207.45,0.69]
[1757315363240,61.05067892,207.49,207.46,0.69]
[1757315363802,61.03067892,207.49,207.46,0.69]
[1757315368628,61.09067892,207.49,207.46,0.69]
[1757315374338,24.17067892,207.49,207.46,0.69]
[1757315374531,61.09067892,207.49,207.46,0.69]
[1757315374842,56.27116955,207.49,207.47,0.69]
[1757315375020,19.35116955,207.49,207.47,0.69]
[1757315375220,56.27116955,207.49,207.47,0.69]
[1757315376522,19.35116955,207.49,207.47,0.69]
[1757315376725,61.09067892,207.49,207.47,0.69]
[1757315376924,24.17067892,207.49,207.47,0.69]
[1757315377125,61.09067892,207.49,207.47,0.69]
[1757315378839,24.17067892,207.49,207.47,0.69]
[1757315379037,61.09067892,207.49,207.46,0.68]
[1757315379736,24.17067892,207.49,207.46,0.68]
[1757315379935,61.09067892,207.49,207.46,0.68]
[1757315380631,24.17067892,207.49,207.46,0.68]
[1757315380832,61.09067892,207.49,207.46,0.68]
[1757315381435,24.17067892,207.49,207.46,0.68]
[1757315381632,61.09067892,207.49,207.46,0.68]
[1757315383835,61.69067892,207.49,207.45,0.03]
[1757315384069,13.59559401,207.48,207.45,0.03]
[1757315384232,55.31226028,207.46,207.45,0.03]
[1757315384637,57.24355449,207.46,207.45,0.03]
[1757315384855,57.84355449,207.46,207.45,0.03]
[1757315385741,82.66376079,207.46,207.45,0.03]
[1757315385942,13.59559401,207.45,207.44,0.03]
[1757315386145,54.28024826,207.45,207.44,0.03]
[1757315386348,54.88024826,207.45,207.44,0.03]
[1757315386657,56.81182226,207.45,207.44,0.03]
[1757315388237,61.63226091,207.45,207.44,0.03]
[1757315390352,61.63226091,207.45,207.43,0.03]
[1757315390553,17.36024826,207.44,207.43,0.03]
[1757315390943,19.89182226,207.44,207.43,0.03]
[1757315391136,19.29182226,207.44,207.43,0.03]
[1757315391342,19.89182226,207.44,207.43,0.03]
[1757315391857,19.29182226,207.44,207.43,0.03]
[1757315392073,56.21182226,207.44,207.43,0.71]
[1757315392571,61.03249329,207.44,207.43,0.71]
[1757315393763,20.34783904,207.44,207.43,0.71]
[1757315393944,61.03249329,207.44,207.43,0.71]
[1757315394463,22.76115048,207.44,207.43,0.71]
[1757315394670,54.86047945,207.44,207.43,0.71]
[1757315396577,43.94047945,207.44,207.43,0.71]
[1757315396761,54.86047945,207.44,207.43,0.71]
[1757315397773,59.68115048,207.44,207.43,0.71]
[1757315398572,22.76115048,207.44,207.43,0.71]
[1757315398947,59.68115048,207.44,207.43,0.71]
[1757315400468,48.76115048,207.44,207.43,0.71]
[1757315400672,59.68115048,207.44,207.43,0.71]
[1757315401780,17.94047945,207.44,207.43,0.71]
[1757315401967,54.86047945,207.44,207.43,0.71]
[1757315402166,59.68115048,207.44,207.43,0.71]
[1757315402467,22.76115048,207.44,207.43,0.03]
[1757315402674,59.68115048,207.44,207.43,0.03]
[1757315402855,60.28115048,207.44,207.43,0.03]
[1757315403047,59.68115048,207.44,207.43,0.03]
[1757315403773,39.59559401,207.42,207.41,0.03]
[1757315404083,52.92890545,207.42,207.41,0.03]
[1757315404865,59.68180186,207.42,207.41,0.03]
[1757315405481,22.76180186,207.42,207.41,0.03]
[1757315405782,54.86066601,207.42,207.41,0.7]
[1757315406381,54.88066601,207.42,207.41,0.7]
[1757315406869,17.94066601,207.42,207.41,0.7]
[1757315407083,54.88066601,207.42,207.41,0.7]
[1757315407271,59.70180186,207.42,207.41,0.7]
[1757315407461,59.68180186,207.42,207.41,0.7]
[1757315408256,22.76180186,207.42,207.41,0.7]
[1757315408466,52.44735457,207.42,207.41,0.7]
[1757315408669,54.86066601,207.42,207.41,0.7]
[1757315409569,17.94066601,207.42,207.41,0.7]
[1757315409876,54.86066601,207.42,207.41,0.7]
[1757315411479,52.44735457,207.42,207.41,0.7]
[1757315411670,54.86066601,207.42,207.41,0.7]
[1757315421892,15.52735457,207.42,207.41,0.7]
[1757315422090,59.68180186,207.42,207.41,0.03]
[1757315422967,59.74180186,207.42,207.41,0.03]
[1757315423889,59.74180186,207.42,207.41,0.7]
[1757315425784,22.82180186,207.42,207.41,0.7]
[1757315426091,59.74180186,207.42,207.41,0.7]
[1757315427093,54.92066601,207.42,207.41,0.7]
[1757315430298,15.58735457,207.42,207.41,0.7]
[1757315430475,50.57559401,207.42,207.41,0.7]
[1757315431177,13.65559401,207.42,207.41,5.5213683]
[1757315431398,36.98,207.42,207.41,7.93467974]
[1757315431776,0.06,207.42,207.41,7.93467974]
[1757315437591,0.06,207.42,207.41,88.03467974]
[1757315438287,0.06,207.42,207.41,7.93467974]
[1757315438607,0.06,207.45,207.44,26.0]
[1757315438790,0.06,207.45,207.44,28.41331144]
[1757315438987,0.06,207.45,207.44,29.08331144]
[1757315439202,0.06,207.45,207.44,0.67]
[1757315439405,0.06,207.45,207.44,3.08331144]
[1757315439791,36.98,207.45,207.44,3.08331144]
[1757315440511,36.98,207.45,207.44,7.90398247]
[1757315440808,36.98,207.45,207.44,0.67]
[1757315442389,36.98,207.45,207.44,3.08331144]
[1757315444114,36.98,207.45,207.44,7.90398247]
[1757315449015,0.06,207.45,207.44,7.90398247]
[1757315449394,0.06,207.45,207.44,88.00398247]
[1757315449596,0.06,207.45,207.44,114.00398247]
[1757315450221,0.06,207.45,207.44,128.47890467]
[1757315450714,0.06,207.45,207.44,157.41890467]
[1757315451298,0.06,207.47,207.46,26.0]
[1757315451499,0.06,207.47,207.46,106.1]
[1757315451803,0.06,207.47,207.46,109.18331144]
[1757315453726,0.06,207.47,207.46,114.00351774]
[1757315454809,0.06,207.48,207.47,2.41331144]
[1757315455123,0.06,207.48,207.47,3.08331144]
[1757315455624,0.06,207.48,207.47,5.01311484]
[1757315456406,0.06,207.48,207.47,11.18444268]
[1757315458421,0.06,207.48,207.47,87.51977737]
[1757315458627,0.06,207.48,207.47,89.35463928]
[1757315460934,0.06,207.48,207.47,120.22444269]
[1757315462418,1e-08,207.48,207.47,120.22444269]
[1757315462814,0.06,207.51,207.49,26.0]
[1757315463015,0.06,207.51,207.49,33.52933062]
[1757315463321,0.06,207.51,207.49,34.19933062]
[1757315463725,0.06,207.51,207.49,36.12885475]
[1757315464034,0.06,207.51,207.49,40.94836412]
[1757315465034,0.06,207.51,207.49,149.98836412]
[1757315465240,1e-08,207.53,207.52,28.94]
[1757315465411,1e-08,207.53,207.52,112.80466531]
[1757315465742,1e-08,207.53,207.52,113.51466531]
[1757315465918,1e-08,207.53,207.52,127.98330454]
[1757315466311,1e-08,207.53,207.52,132.80211718]
[1757315466624,1e-08,207.54,207.52,132.80211718]
[1757315466932,1e-08,207.54,207.53,33.41466531]
[1757315467133,1e-08,207.54,207.53,70.33466531]
[1757315467320,1e-08,207.54,207.53,33.41466531]
[1757315467643,1e-08,207.54,207.53,165.38446481]
[1757315467828,1e-08,207.54,207.53,164.90260677]
[1757315468025,0.06,207.57,207.56,26.0]
[1757315468224,0.06,207.57,207.56,34.58254929]
[1757315468439,0.06,207.57,207.56,35.29254929]
[1757315468731,1e-08,207.57,207.56,78.69909541]
[1757315469521,0.06,207.6,207.56,175.09025907]
[1757315469722,0.06,207.6,207.59,33.52933062]
[1757315469934,1e-08,207.6,207.59,33.52933062]
[1757315470248,1e-08,207.6,207.59,63.52185303]
[1757315470422,1e-08,207.6,207.59,36.51026089]
[1757315470729,1e-08,207.6,207.59,34.58185303]
[1757315474356,1e-08,207.6,207.59,35.29185303]
[1757315475847,1e-08,207.6,207.59,34.58185303]
[1757315476425,1e-08,207.6,207.59,35.29185303]
[1757315477952,1e-08,207.6,207.59,34.58185303]
[1757315478651,1e-08,207.6,207.59,30.81718772]
[1757315478827,1e-08,207.6,207.59,35.29185303]
[1757315479240,1e-08,207.6,207.59,115.39185303]
[1757315480338,1e-08,207.6,207.59,116.61053984]
[1757315480544,1e-08,207.6,207.59,114.68185303]
[1757315480948,1e-08,207.6,207.59,143.62185303]
[1757315482848,1e-08,207.6,207.59,144.33185303]
[1757315483039,1e-08,207.6,207.59,143.62185303]
[1757315483851,1e-08,207.6,207.59,110.91718772]
[1757315484055,1e-08,207.6,207.59,114.68185303]
[1757315485451,1e-08,207.6,207.59,115.39185303]
[1757315485945,1e-08,207.6,207.59,88.68185303]
[1757315486634,1e-08,207.6,207.59,84.91718772]
[1757315486954,1e-08,207.6,207.59,88.68185303]
[1757315487248,1e-08,207.6,207.59,83.86466531]
[1757315487441,0.60000001,207.6,207.58,3.76466531]
[1757315487644,0.6,207.59,207.58,3.76466531]
[1757315488444,0.6,207.59,207.57,4.81761341]
[1757315488650,0.6,207.59,207.58,3.76466531]
[1757315488829,1e-08,207.6,207.58,3.76466531]
[1757315489037,1e-08,207.6,207.59,3.76466531]
[1757315490462,1e-08,207.6,207.59,8.58185303]
[1757315492468,1e-08,207.6,207.59,3.76466531]
[1757315492960,0.60000001,207.6,207.59,3.76466531]
[1757315493255,1e-08,207.6,207.59,3.76466531]
[1757315493839,0.60000001,207.6,207.59,3.76466531]
[1757315494350,1e-08,207.6,207.59,3.76466531]
[1757315494554,1e-08,207.6,207.58,80.1]
[1757315494751,1e-08,207.6,207.59,3.76466531]
[1757315495554,0.60000001,207.6,207.58,83.86466531]
[1757315495942,1e-08,207.6,207.58,80.1]
[1757315496143,0.6,207.59,207.56,3.76466531]
[1757315496550,1e-08,207.6,207.56,3.76466531]
[1757315496744,0.60000001,207.6,207.57,3.76466531]
[1757315498846,13.59559401,207.59,207.57,4.45466531]
[1757315499149,13.59559402,207.6,207.58,3.76466531]
[1757315499553,1e-08,207.6,207.59,0.69]
[1757315499750,1e-08,207.6,207.58,3.76466531]
[1757315499954,1e-08,207.6,207.58,4.45466531]
[1757315500155,1e-08,207.6,207.59,3.76466531]
[1757315500352,1e-08,207.6,207.59,4.45466531]
[1757315501165,1e-08,207.6,207.58,8.58188413]
[1757315501646,1e-08,207.6,207.58,9.27188413]
[1757315501840,1e-08,207.6,207.59,4.45466531]
[1757315502969,1e-08,207.6,207.59,9.27185303]
[1757315504384,1e-08,207.6,207.59,5.50718772]
[1757315504663,1e-08,207.6,207.59,9.27185303]
[1757315508751,1e-08,207.6,207.59,89.37185303]
[1757315511855,1e-08,207.6,207.59,89.40185303]
[1757315518381,1e-08,207.6,207.59,88.04434814]
[1757315518676,1e-08,207.6,207.59,85.63718772]
[1757315518859,1e-08,207.6,207.59,88.04434814]
[1757315528579,1e-08,207.6,207.59,85.63718772]
[1757315528771,1e-08,207.6,207.59,88.04434814]
[1757315529169,1e-08,207.6,207.59,116.98434814]
[1757315529672,1e-08,207.6,207.59,118.912756]
[1757315532894,1e-08,207.6,207.59,115.81559558]
[1757315533081,1e-08,207.6,207.59,116.99434814]
[1757315534877,1e-08,207.6,207.59,126.62298982]
[1757315535481,1e-08,207.6,207.59,128.55139768]
[1757315537480,1e-08,207.62,207.61,54.94]
[1757315537687,1e-08,207.62,207.61,174.32716042]
[1757315537886,0.06,207.65,207.61,175.02716042]
[1757315538084,0.06,207.65,207.64,2.40716042]
[1757315538281,0.06,207.65,207.64,94.26716042]
[1757315538485,0.06,207.65,207.64,94.96716042]
[1757315539012,0.06,207.65,207.64,96.89510355]
[1757315540580,0.06,207.65,207.64,101.71113129]
[1757315544715,0.06,207.65,207.64,99.30397087]
[1757315544905,0.06,207.65,207.64,101.71113129]
[1757315545695,1e-08,207.68,207.67,26.0]
[1757315545899,1e-08,207.68,207.67,174.32716042]
[1757315546105,1e-08,207.68,207.67,175.02716042]
[1757315546689,1e-08,207.68,207.67,188.62275443]
[1757315547711,1e-08,207.68,207.67,193.43808644]
[1757315549120,1e-08,207.68,207.67,155.85808644]
[1757315549290,1e-08,207.68,207.67,142.96249243]
[1757315550291,1e-08,207.68,207.67,144.89034264]
[1757315550492,1e-08,207.68,207.67,181.79034264]
[1757315553199,1e-08,207.68,207.67,181.07034264]
[1757315557010,1e-08,207.7,207.69,107.01476616]
[1757315557509,1e-08,207.7,207.69,111.82963447]
[1757315557909,1e-08,207.7,207.69,121.45827615]
[1757315559012,1e-08,207.7,207.69,109.42247405]
[1757315559212,1e-08,207.7,207.69,201.55827615]
[1757315559516,1e-08,207.7,207.69,191.92963447]
[1757315561998,1e-08,207.7,207.69,155.04963447]
[1757315562201,1e-08,207.7,207.69,191.92963447]
[1757315565720,1e-08,207.7,207.69,165.92963447]
[1757315566820,1e-08,207.7,207.69,169.74955111]
[1757315567418,1e-08,207.7,207.69,179.37819279]
[1757315568923,1e-08,207.7,207.69,142.49819279]
[1757315569222,1e-08,207.7,207.69,179.35819279]
[1757315570931,1e-08,207.7,207.69,165.90963447]
[1757315572024,1e-08,207.7,207.69,165.19963447]
[1757315572908,1e-08,207.7,207.69,125.93247405]
[1757315573124,0.60000001,207.7,207.69,84.91486831]
[1757315573719,0.60000001,207.7,207.69,87.32202873]
[1757315574023,1e-08,207.7,207.69,87.32202873]
[1757315575121,1e-08,207.7,207.69,89.24978603]
[1757315576137,1e-08,207.7,207.69,115.78262561]
[1757315576312,1e-08,207.7,207.69,118.89978603]
[1757315577113,1e-08,207.7,207.69,38.79978603]
[1757315580419,1e-08,207.7,207.69,40.14918738]
[1757315583020,1e-08,207.7,207.69,120.24918738]
[1757315584428,1e-08,207.7,207.69,119.53918738]
[1757315584623,1e-08,207.7,207.69,156.43918738]
[1757315585718,1e-08,207.7,207.69,157.14918738]
[1757315590325,1e-08,207.7,207.69,160.90574915]
[1757315590724,1e-08,207.7,207.69,157.14918738]
[1757315592544,1e-08,207.7,207.69,115.78262561]
[1757315592745,1e-08,207.7,207.69,157.12918738]
[1757315594049,1e-08,207.7,207.69,120.24918738]
[1757315594554,1e-08,207.7,207.69,157.12918738]
[1757315594737,1e-08,207.7,207.69,120.24918738]
[1757315594925,1e-08,207.7,207.69,157.12918738]
[1757315595240,1e-08,207.7,207.69,115.78262561]
[1757315595449,1e-08,207.7,207.69,156.41918738]
[1757315598643,1e-08,207.7,207.69,156.44918738]
[1757315599344,1e-08,207.7,207.69,157.15918738]
[1757315599730,1e-08,207.7,207.69,156.44918738]
[1757315600250,1e-08,207.7,207.69,119.56918738]
[1757315600438,1e-08,207.7,207.69,156.42918738]
[1757315602349,1e-08,207.7,207.69,157.13918738]
[1757315609060,1e-08,207.7,207.69,152.67262561]
[1757315609257,1e-08,207.7,207.69,157.13918738]
[1757315610462,1e-08,207.7,207.69,156.42918738]
[1757315610651,1e-08,207.7,207.69,152.67262561]
[1757315610851,1e-08,207.7,207.69,156.42918738]
[1757315611055,1e-08,207.7,207.69,119.56918738]
[1757315611268,1e-08,207.7,207.69,182.44918738]
[1757315611565,0.60000001,207.7,207.69,182.44918738]
[1757315612956,1e-08,207.7,207.69,182.44918738]
[1757315613350,1e-08,207.7,207.69,145.56918738]